Cogmind - Beta 15 @@@ ROGUE MODE // 2025.10.21 @ 20:14:49 Player: mewcatx Result: Destroyed by P-80 Master with Gamma Rifle Performance ------------- Evolutions (9) 4500 Regions Visited (18) 3600 Robots Destroyed (180) 900 Value Destroyed (6568) 6568 Prototype IDs (28) 560 Alien Tech Used (0) 0 Bonus (2725) 2725 TOTAL SCORE: 18853 Bonus ------- High Alert Combat Kills 154 Follower Combat Kills 758 Registered with UFD 300 Met Optimus in HQ 500 Met Warlord at Base 500 MAIN.C Attacked Warlord 500 Warlord Defense Kills 100 Friendly Fire -87 Cogmind --------- Core Integrity 0/1600 Matter 70/300 Energy 100/100 System Corruption 22% Temperature Cool (0) Movement Core (50) Location -1/Access Parts ------- > --- POWER (3) -------- (None) > --- PROPULSION (10) -- (None) > --- UTILITY (9) ------ Enhanced Optical Array > --- WEAPON (3) ------- (None) > --- INVENTORY (5) ---- (None) Peak State ------------ > --- POWER ------------ Antimatter Reactor Micro Antimatter Reactor > --- PROPULSION ------- Heavy Siege Treads Centrium Wheel Centrium Wheel Centrium Wheel Improved Antigrav System Improved Antigrav System Improved Gyrokinetic Inverter > --- UTILITY ---------- Improved Heat Sink Medium Storage Unit Enhanced Optical Array Improved Sensor Array Advanced Transmission Jammer Improved Medium Armor Plating Makeshift Hacking Suite Improved Hacking Suite > --- WEAPON ----------- Phase Gun Railgun Light Antimatter Cannon > --- INVENTORY -------- Micro Antimatter Reactor Field Propulsion Array Advanced Thermal Shield Advanced Shield Generator Improved Field Recycling Unit Tesla Rifle Coil Gun Light Antimatter Cannon Heavy Shock Bomb Launcher [Rating: 131] Favorites ----------- Power Cooled Ion Engine Engine Cooled Ion Engine Power Core Light Nuclear Core Reactor Cold Fusion Reactor Propulsion Improved Treads Treads Improved Treads Leg Improved Titanium Leg Wheel Compact Wheel Hover Unit Improved Gyrokinetic Inverter Flight Unit Impulse Thruster Array Utility High-capacity Storage Unit Device Cooling System Storage High-capacity Storage Unit Processor Advanced Signal Interpreter Hackware Hacking Suite Protection Light Armor Plating Weapon Assault Cannon Energy Gun Heavy Gatling Laser Energy Cannon Advanced Beam Cannon Ballistic Gun High-powered Shotgun Ballistic Cannon Assault Cannon Launcher Grenade Launcher Impact Weapon Power Maul Slashing Weapon Chainsword Piercing Weapon Heavy Pick Build | -11 -10 -9 -9 -9 -9 -6 -6 -6 -5 -5 -5 -5 -4 -4 -3 -2 -2 -1 ------- Run | Yrd Mat Mat Sto Rec Scr Fac Low Low Fac Upp Upp War Pro Fac Res Res Tes Acc Slots Evolved 18 | . . 2 . . . 6 . . 2 . . . . 2 2 2 . 2 Power 2 | . . . . . . 1 . . . . . . . . . 1 . . Propulsion 8 | . . . . . . 2 . . 1 . . . . 1 2 1 . 1 Utility 7 | . . 2 . . . 2 . . 1 . . . . 1 . . . 1 Weapon 1 | . . . . . . 1 . . . . . . . . . . . . Parts Attached 222 | 7 8 25 8 . 6 51 2 6 36 4 3 14 13 8 18 2 7 4 Power 31 | 1 . 2 2 . . 6 . 2 3 1 1 1 4 1 4 2 1 . Engine 11 | 1 . 2 2 . . 2 . 1 1 . . . 1 1 . . . . Core 11 | . . . . . . 3 . 1 2 1 1 . 3 . . . . . Reactor 9 | . . . . . . 1 . . . . . 1 . . 4 2 1 . Propulsion 59 | 2 2 4 . . 2 14 1 . 16 . . 6 2 1 9 . . . Treads 14 | 2 2 4 . . 2 3 . . . . . . . 1 . . . . Leg 24 | . . . . . . 9 1 . 6 . . 6 2 . . . . . Wheel 5 | . . . . . . 2 . . . . . . . . 3 . . . Hover 3 | . . . . . . . . . . . . . . . 3 . . . Flight 13 | . . . . . . . . . 10 . . . . . 3 . . . Utility 76 | 2 3 10 2 . 3 19 . 2 12 2 1 4 3 4 2 . 4 3 Device 31 | 1 . 3 1 . 1 9 . 1 5 1 . 2 1 2 1 . 3 . Storage 9 | 1 2 1 . . . 1 . . 1 . . . 2 . 1 . . . Processor 8 | . . 1 . . . 3 . . 2 . . . . . . . . 2 Hackware 5 | . . . . . . . . . 3 . . . . 1 . . 1 . Protection 23 | . 1 5 1 . 2 6 . 1 1 1 1 2 . 1 . . . 1 Artifact . | . . . . . . . . . . . . . . . . . . . Weapon 56 | 2 3 9 4 . 1 12 1 2 5 1 1 3 4 2 3 . 2 1 Energy Gun 8 | 1 . . 1 . . 2 . . 1 . . 1 . . 1 . 1 . Energy Cannon 14 | . . 4 1 . . 2 . 1 2 1 . 1 2 . . . . . Ballistic Gun 11 | 1 2 . 1 . 1 1 . . . . . . 2 . 2 . . 1 Ballistic Cannon 7 | . . 3 1 . . 1 . . . . . . . 1 . . 1 . Launcher 4 | . . 2 . . . . 1 . . . . . . 1 . . . . Special Weapon . | . . . . . . . . . . . . . . . . . . . Impact Weapon 5 | . . . . . . 3 . 1 . . 1 . . . . . . . Slashing Weapon 6 | . 1 . . . . 2 . . 2 . . 1 . . . . . . Piercing Weapon 1 | . . . . . . 1 . . . . . . . . . . . . Special Melee Weapon . | . . . . . . . . . . . . . . . . . . . Unidentified Prototypes 13 | . . . 2 . . 4 . . 2 . . 2 . 1 1 . 1 . Parts Lost 102 | . . 3 . . . 20 . 13 7 . 3 2 14 4 20 2 4 10 Power 21 | . . . . . . 3 . 3 2 . 1 . 5 1 3 . 2 1 Propulsion 29 | . . . . . . 8 . 3 2 . . 1 5 . 6 1 1 2 Utility 35 | . . 3 . . . 7 . 4 2 . 1 1 1 3 5 1 1 6 Weapon 17 | . . . . . . 2 . 3 1 . 1 . 3 . 6 . . 1 Highest Loss Streak 14 | . . 2 . . . 7 . 7 2 . 3 2 11 3 14 2 3 6 To Critical Strikes . | . . . . . . . . . . . . . . . . . . . Average Backups 13 | 2 10 18 20 20 17 12 13 10 6 6 9 9 8 8 8 5 3 4 Power 1 | . 1 2 2 2 1 1 2 . . 1 3 2 . . . 2 2 3 Propulsion 2 | . 2 3 4 4 2 1 . . 2 . 1 1 1 . . . . . Utility 5 | . 3 5 7 7 7 6 6 6 2 3 3 4 4 5 3 1 . . Weapon 4 | . 2 7 7 7 6 3 5 3 1 1 2 2 1 3 5 1 . . Tool/Special . | . . . . . . . . . . . . . . . . . . . Unused Backups 55 | . 5 9 1 . 9 12 . . 6 1 1 6 . 1 1 1 . 2 Power 9 | . 1 1 . . 2 1 . . . . . 2 . . . . . 2 Propulsion 13 | . . 1 . . 3 3 . . 4 . . 2 . . . . . . Utility 21 | . 2 1 . . 4 6 . . 2 1 1 2 . 1 1 . . . Weapon 12 | . 2 6 1 . . 2 . . . . . . . . . 1 . . Tool/Special . | . . . . . . . . . . . . . . . . . . . Average Slot Usage (%) 91 | . 99 99 100 100 100 88 93 42 73 99 96 98 89 79 80 37 39 31 Engine 6 | . 13 11 11 11 11 2 . 1 2 . . . . 1 2 . . . Core 2 | . . . . . . 3 6 4 3 10 10 9 7 3 . . . 2 Reactor 1 | . . . . . . 3 . . . . . 1 . . 3 8 7 3 Treads 13 | . 27 22 22 22 22 11 2 . . . . . . 2 3 . . . Leg 7 | . . . . . . 10 10 1 2 29 29 29 23 15 8 . . . Flight 1 | . . . . . . . . . 17 . . . . . 2 13 11 6 Device 11 | . 3 20 11 11 11 15 20 5 4 4 4 5 9 8 12 3 3 . Storage 7 | . 14 11 11 11 11 6 6 4 1 5 5 5 5 5 3 . . . Processor 7 | . . . 11 11 11 7 6 6 14 11 11 11 11 9 4 4 4 9 Hackware 3 | . . . . . . . . . 11 17 17 15 5 9 8 4 7 5 Protection 7 | . 10 12 10 11 10 5 6 3 . . . 1 5 5 3 . . . Energy Gun 1 | . 13 . . . . . . . . . 3 5 6 . 1 . 2 . Energy Cannon 6 | . . 10 10 11 11 2 6 5 . 11 7 8 4 5 1 . . . Ballistic Gun 2 | . 14 1 . . . 2 . . . . . . 4 5 4 . . . Ballistic Cannon 4 | . . 7 9 11 10 . . . . . . . . 4 3 . 2 3 Impact Weapon 1 | . . . . . . 5 6 6 5 5 1 . . . . . . . Slashing Weapon 1 | . . . . . . 7 . . 2 . . . . . . . . . Peak Build Rating 131 | 7 12 20 25 21 26 71 58 56 79 80 83 99 89 91 131 90 92 82 Average Rating 43 | 5 8 18 21 21 22 54 56 30 58 78 78 85 74 78 103 86 82 63 On Entrance 50 | . 7 11 20 21 21 26 57 56 14 73 80 78 95 69 73 81 83 87 Naked Turns . | . . . . . . . . . . . . . . . . . . . Heaviest Build 87 | 15 34 66 65 62 62 87 58 38 50 62 68 83 53 53 61 36 47 28 Greatest Support 103 | 40 43 43 43 43 46 86 32 3 103 103 103 103 95 70 70 47 47 32 Greatest Overweight (x) 12 | . . 1 1 1 1 3 1 12 3 . . . 2 1 3 . 1 1 Average Overweight (x) . | . . . 1 1 1 . 1 2 . . . . . . . . . . Largest Inventory Capacity 20 | 8 15 20 20 20 20 20 15 15 10 10 10 10 10 10 10 5 5 5 Average Capacity 15 | 7 12 19 20 20 20 16 15 12 6 10 10 10 10 10 9 5 5 5 Most Carried 20 | 4 15 20 20 20 20 20 15 15 10 10 10 10 10 10 10 5 5 5 Average Carried 14 | 2 10 18 19 20 18 14 15 11 6 7 9 9 8 8 9 4 3 4 Final Capacity 20 | 8 15 20 20 20 20 15 15 5 10 10 10 10 10 10 5 5 5 5 Final Carried 20 | 4 15 20 20 20 20 15 15 5 2 10 10 10 8 9 5 5 4 . Class Distribution -------------------- 57% | Mutant 8% | Gladiator 5% | Scavenger-Mutant 5% | Hacker-Skirmisher 4% | Scavenger-Tank 4% | Hacker-Assassin 3% | Hacker-Mutant 3% | Tank Dominant Class ---------------- Mutant | -10/Materials Mutant | -9/Materials Mutant | -9/Storage Mutant | -9/Recycling Mutant | -9/Scraptown Gladiator | -6/Factory Scavenger-Mutant | -6/Lower Caves Mutant | -6/Lower Caves Hacker-Scout | -5/Factory Hacker-Assassin | -5/Upper Caves Hacker-Skirmisher | -5/Upper Caves Hacker-Skirmisher | -5/Warlord Scavenger-Skirmisher | -4/Proximity Caves Hacker-Skirmisher | -4/Factory Scavenger-Tank | -3/Research Mutant | -2/Research Hacker-Mutant | -2/Testing Hacker-Mutant | -1/Access Resources | -11 -10 -9 -9 -9 -9 -6 -6 -6 -5 -5 -5 -5 -4 -4 -3 -2 -2 -1 ----------- Run | Yrd Mat Mat Sto Rec Scr Fac Low Low Fac Upp Upp War Pro Fac Res Res Tes Acc Matter Collected 5025 | 271 256 753 325 . 200 1135 137 201 365 190 88 185 178 153 384 142 . 62 Remotely . | . . . . . . . . . . . . . . . . . . . Salvage Created 7178 | 43 403 1417 562 . . 2176 227 176 576 204 405 16 264 100 609 . . . Parts 346 | 8 29 95 25 . . 74 17 3 15 8 12 1 14 6 39 . . . Haulers Intercepted 7 | . 1 5 1 . . . . . . . . . . . . . . . Recyclers Shooed 7 | . 1 . . . . 4 . . . . . . . . . . . 2 Parts Field Recycled . | . . . . . . . . . . . . . . . . . . . Retrieved Matter . | . . . . . . . . . . . . . . . . . . . Parts Self-Destructed 54 | . . . . . . . 21 9 . 1 9 . 14 . . . . . Prevented 10 | . . . . . . . . . . 7 3 . . . . . . . Kills | -11 -10 -9 -9 -9 -9 -6 -6 -6 -5 -5 -5 -5 -4 -4 -3 -2 -2 -1 ------- Run | Yrd Mat Mat Sto Rec Scr Fac Low Low Fac Upp Upp War Pro Fac Res Res Tes Acc Combat Hostiles Destroyed 139 | . 9 32 12 . . 33 7 4 7 5 7 1 10 3 9 . . . Melee 22 | . . . . . . 16 . . 6 . . . . . . . . . Guns 30 | . 9 1 . . . 3 . . . . 6 . 6 1 4 . . . Cannons 56 | . . 26 11 . . 4 1 2 . 3 1 1 4 2 1 . . . AOE 18 | . . 5 . . . 2 6 2 . . . . . . 3 . . . Classes Destroyed 16 | 1 3 6 1 . . 3 1 . . . 1 . . . . . . . Worker 7 | . . 1 . . . 2 . . 1 . . . . . 3 . . . Builder 4 | . . 1 . . . 2 . . . . . . . . 1 . . . Tunneler 6 | 3 . . . . . 1 . . . . . . . 1 1 . . . Hauler 7 | . 1 5 1 . . . . . . . . . . . . . . . Recycler 8 | . . . 1 . . 3 . . 2 . . . . . 2 . . . Operator 4 | . 1 3 . . . . . . . . . . . . . . . . Watcher 5 | . . 1 . . . 1 . . 3 . . . . . . . . . Swarmer 39 | . . 6 3 . . 1 6 . 5 4 4 . 7 . 3 . . . Grunt 61 | . 9 18 5 . . 21 . 4 1 . 2 1 . . . . . . Brawler 1 | . . . . . . . . . . . 1 . . . . . . . Duelist 2 | . . 1 . . . 1 . . . . . . . . . . . . Protector 1 | . . . . . . 1 . . . . . . . . . . . . Sentry 16 | . . 7 4 . . 2 . . . 1 . . 1 1 . . . . Hunter 3 | . . . . . . . 1 . . . . . 2 . . . . . Programmer 15 | . . . . . . 6 . . 1 . . . . 2 6 . . . Behemoth 1 | . . . . . . 1 . . . . . . . . . . . . Best Kill Streak 7 | 1 2 6 5 . . 6 4 2 5 3 7 1 7 2 5 . . . Combat Bots Only 7 | . 2 3 2 . . 6 4 2 5 3 7 1 7 2 5 . . . Max Kills in Single Turn 3 | 1 2 2 1 . . 1 3 1 1 1 2 1 1 1 3 . . . Gunslinging 1 | . 1 . . . . . . . . . . . . . . . . . Exploded 3 | . . 2 . . . 1 3 1 . . . . . . 3 . . . Melee 1 | . . . . . . 1 . . 1 . . . . . . . . . Uniques/NPCs Destroyed . | . . . . . . . . . . . . . . . . . . . Combat | -11 -10 -9 -9 -9 -9 -6 -6 -6 -5 -5 -5 -5 -4 -4 -3 -2 -2 -1 -------- Run | Yrd Mat Mat Sto Rec Scr Fac Low Low Fac Upp Upp War Pro Fac Res Res Tes Acc Hostile Shots Fired 1725 | . 59 123 51 . . 419 15 107 108 51 52 72 136 41 244 28 55 164 Missed 541 | . 19 36 13 . . 125 5 20 38 12 14 28 33 9 73 14 29 73 Deflected 11 | . . . . . . 11 . . . . . . . . . . . . Hits 1184 | . 40 87 38 . . 294 10 87 70 39 38 44 103 32 171 14 26 91 Melee 6 | . . 1 . . . 2 . . . . . . . 3 . . . . Projectile 1178 | . 40 86 38 . . 292 10 87 70 39 38 44 103 29 171 14 26 91 AOE 1 | . . . . . . . . . 1 . . . . . . . . . Critical Strikes 51 | . . 4 3 . . 17 . 5 4 . . 3 2 4 4 . . 5 Part Disruptions 2 | . . . . . . . . . . . . . . . 1 . . 1 Damage Taken 20674 | . 477 1016 472 . . 4359 182 1810 1354 563 651 748 1697 764 3066 308 626 2581 Core 4191 | . 56 109 70 . . 535 17 234 273 57 38 67 215 80 523 92 206 1619 Absorbed by Shields 409 | . . . . . . 146 . . 24 32 . 130 77 . . . . . Ignored by Resistances 47 | . . . . . . . . . . . . . . . 47 . . . Regen/Repaired (Parts) 356 | . . . . . . 185 . . . . . 171 . . . . . . Core Remaining (%) 63 | 100 77 . . . 55 . . 7 . . . . 35 93 59 . 79 . Volleys Fired 420 | 9 46 107 44 . . 54 12 17 . 13 17 9 25 16 40 . 2 9 Largest 3 | 2 2 2 2 . . 3 2 2 . 2 3 3 2 3 3 . 1 1 Hottest 288 | 70 70 136 105 . . 159 148 110 . 162 269 288 175 181 176 . 51 51 Shots Fired 726 | 18 86 187 68 . . 91 16 23 1 23 19 21 33 35 93 . 2 10 Gun 274 | 18 86 10 . . . 27 . . . . 16 12 22 12 64 . . 7 Cannon 414 | . . 164 64 . . 55 8 21 1 23 3 9 11 22 28 . 2 3 Launcher 38 | . . 13 4 . . 9 8 2 . . . . . 1 1 . . . Special . | . . . . . . . . . . . . . . . . . . . Kinetic 291 | 9 40 53 27 . . 38 . . . . . . 9 25 78 . 2 10 Thermal 341 | 9 46 121 37 . . 44 8 13 . . 16 12 18 8 9 . . . Explosive 30 | . . 8 4 . . 8 8 2 . . . . . . . . . . Electromagnetic 45 | . . 5 . . . 1 . 8 1 23 3 2 . 1 1 . . . Entropic 19 | . . . . . . . . . . . . 7 6 1 5 . . . Robot Hit Streak 16 | 3 10 16 13 . . 14 3 9 . 3 9 5 7 7 10 . . 2 Robot Miss Streak 6 | 5 2 4 4 . . 3 5 4 . 4 4 4 6 2 6 . . 2 Penetration Max 1 | . . . . . . . . . . . . . . . 1 . . . Secondary Targets 5 | . 2 . . . . . . . . . . . 3 . . . . . Max Gunslinging Chain 1 | . 1 . . . . . . . . . . . 1 . . . . . Shots Hit Robots 563 | 8 59 120 34 . . 146 6 17 26 11 15 14 26 25 53 . . 3 Core Hits 272 | 3 25 50 17 . . 56 13 7 11 4 22 8 18 11 25 . . 2 Critical Kills 6 | . 1 . 1 . . 4 . . . . . . . . . . . . Critical Parts Destroyed 16 | . . . . . . 12 . . 4 . . . . . . . . . Critical Strikes 44 | . 5 . 3 . . 26 . . 4 . . 3 2 . 1 . . . Burn 6 | . 4 . . . . . . . . . . 1 . . 1 . . . Meltdown 3 | . . . 1 . . 2 . . . . . . . . . . . . Destroy 2 | . 1 . . . . 1 . . . . . . . . . . . . Blast 3 | . . . 2 . . 1 . . . . . . . . . . . . Smash 17 | . . . . . . 13 . . 4 . . . . . . . . . Sever 9 | . . . . . . 9 . . . . . . . . . . . . Sunder 4 | . . . . . . . . . . . . 2 2 . . . . . Melee Attacks 233 | . 3 . . . . 158 . 3 62 3 . . 4 . . . . . Thermal 4 | . . . . . . . . . . . . . 4 . . . . . Impact 92 | . . . . . . 58 . 3 28 3 . . . . . . . . Slashing 137 | . 3 . . . . 100 . . 34 . . . . . . . . . Piercing . | . . . . . . . . . . . . . . . . . . . Sneak Attacks 14 | . . . . . . 9 . . 4 . . . 1 . . . . . Combat Hostiles 1 | . . . . . . . . . . . . . 1 . . . . . Follow-up Attacks 17 | . . . . . . 14 . 1 2 . . . . . . . . . Martial Strikes 5 | . . . . . . 5 . . . . . . . . . . . . Damage Inflicted 19347 | 95 815 3229 864 . . 5879 647 933 1249 335 524 849 863 803 2075 . . 187 Guns 3882 | 95 815 81 . . . 313 . . . . 451 289 341 258 1143 . . 96 Cannons 7712 | . . 2575 772 . . 1046 161 394 . 293 60 560 522 545 701 . . 83 Explosions 2131 | . . 573 92 . . 286 486 463 . . . . . . 231 . . . Melee 5601 | . . . . . . 4234 . 76 1249 42 . . . . . . . . Ramming 21 | . . . . . . . . . . . 13 . . . . . . 8 Kinetic 4220 | 57 377 836 219 . . 504 . . . . . . 136 539 1373 . . 179 Thermal 5768 | 38 438 1829 553 . . 855 161 286 . . 451 289 317 264 287 . . . Explosive 1575 | . . 319 92 . . 274 486 404 . . . . . . . . . . Electromagnetic 890 | . . 245 . . . 12 . 167 . 293 60 41 . . 72 . . . Impact 2329 | . . . . . . 1708 . 76 503 42 . . . . . . . . Slashing 3272 | . . . . . . 2526 . . 746 . . . . . . . . . Piercing . | . . . . . . . . . . . . . . . . . . . Entropic 1272 | . . . . . . . . . . . . 519 410 . 343 . . . Highest Corruption 22 | . . . . . . 11 11 11 8 8 8 8 . 5 11 4 4 22 Average Corruption 7 | . . . . . . 6 11 11 7 8 8 8 . 2 6 2 4 5 Corruption Purged . | . . . . . . . . . . . . . . . . . . . Corruption Blocked . | . . . . . . . . . . . . . . . . . . . Effects 197 | . . . . . . 57 17 22 7 31 22 6 . . 19 1 5 10 Message Errors 48 | . . . . . . 13 7 7 1 3 8 2 . . 5 . 1 1 Matter Fused 42 | . . . . . . 19 1 3 . 7 3 1 . . 4 . 2 2 Heat Flow Errors 23 | . . . . . . 5 1 3 1 6 2 . . . 3 1 . 1 Energy Discharges 24 | . . . . . . 6 3 1 1 3 4 1 . . 1 . 2 2 Parts Rejected 1 | . . . . . . . . . . . . . . . . . . 1 Parts Fused 4 | . . . . . . 1 . . . 1 1 1 . . . . . . Data Loss (minor) 24 | . . . . . . 4 3 3 1 6 4 1 . . 2 . . . Data Loss (major) 7 | . . . . . . 2 . 1 1 2 . . . . 1 . . . Misfires 8 | . . . . . . 3 . 1 1 1 . . . . 1 . . 1 Alerts 11 | . . . . . . 4 2 2 1 2 . . . . . . . . Misdirections 5 | . . . . . . . . 1 . . . . . . 2 . . 2 Overload Shots 13 | . . . . . . 9 4 . . . . . . . . . . . Effects 1 | . . . . . . . 1 . . . . . . . . . . . Heat Surge 1 | . . . . . . . 1 . . . . . . . . . . . Overflow Damage 1897 | . . 68 2 . . 1026 100 52 293 23 . 103 . 51 176 . . 3 Projectiles 416 | . . 50 2 . . 57 . 13 . 6 . 103 . 51 131 . . 3 Explosions 191 | . . 18 . . . . 100 28 . . . . . . 45 . . . Melee 1290 | . . . . . . 969 . 11 293 17 . . . . . . . . Knockbacks 32 | . . 10 . . . 11 . 1 3 1 . . . . 4 . . 2 Impact 13 | . . . . . . 8 . 1 3 1 . . . . . . . . Kinetic 18 | . . 10 . . . 2 . . . . . . . . 4 . . 2 Secondary 1 | . . . . . . 1 . . . . . . . . . . . . Self-Inflicted Damage 343 | . . 11 56 . . . 22 151 . . . . . . 100 . . 3 Shots 9 | . . 1 2 . . . 1 3 . . . . . . 2 . . . Rammed 3 | . . . . . . . . . . . . . . . . . . 3 Targets Rammed 5 | . . . . . . . . . . . 2 . . . . . . 3 Kicked 2 | . . . . . . . . . . . 2 . . . . . . . Crushed . | . . . . . . . . . . . . . . . . . . . Highest Temperature 504 | 27 281 222 22 . . 220 341 504 143 263 358 430 159 196 231 102 1 79 Average Temperature 106 | 10 76 69 15 . . 64 125 208 21 130 172 176 35 68 100 45 1 33 Received Heat Transfer 4574 | . 240 522 147 . . 1534 . 765 57 6 162 211 54 123 528 18 99 108 Effects 21 | . 1 . . . . . . 12 . 4 1 2 . . 1 . . . Shutdowns 7 | . . . . . . . . 5 . . 1 1 . . . . . . Energy Bleed 1 | . . . . . . . . 1 . . . . . . . . . . Interference 10 | . 1 . . . . . . 3 . 4 . 1 . . 1 . . . Matter Decay 1 | . . . . . . . . 1 . . . . . . . . . . Short Circuit 1 | . . . . . . . . 1 . . . . . . . . . . Damage (minor) 1 | . . . . . . . . 1 . . . . . . . . . . Siege Activations . | . . . . . . . . . . . . . . . . . . . Martial Activations 1 | . . . . . . 1 . . . . . . . . . . . . Total Turns 56 | . . . . . . 56 . . . . . . . . . . . . Longest Duration 56 | . . . . . . 56 . . . . . . . . . . . . Shielding Activations . | . . . . . . . . . . . . . . . . . . . Robots Disrupted . | . . . . . . . . . . . . . . . . . . . Combat Hostiles . | . . . . . . . . . . . . . . . . . . . Robots Corrupted 11 | . . . . . . 7 . . 2 2 . . . . . . . . Combat Hostiles 10 | . . . . . . 7 . . 1 2 . . . . . . . . Parts Fried 24 | . . 2 . . . 17 . 1 1 3 . . . . . . . . Impact Corruptions 33 | . . . . . . 23 . 1 8 1 . . . . . . . . Robots Melted 5 | . . 1 1 . . 2 . . . . . . . . 1 . . . Combat Hostiles 3 | . . . 1 . . 1 . . . . . . . . 1 . . . Parts Melted 14 | . 2 4 2 . . 6 . . . . . . . . . . . . Heat Transferred 10005 | 111 1517 3158 925 . . 1297 230 400 . . 750 625 461 259 272 . . . Parts Sabotaged . | . . . . . . . . . . . . . . . . . . . Parts Stolen . | . . . . . . . . . . . . . . . . . . . Parts Stripped . | . . . . . . . . . . . . . . . . . . . Power Chain Reactions 3 | . . 1 . . . . . 1 . . . . . . 1 . . . Alert | -11 -10 -9 -9 -9 -9 -6 -6 -6 -5 -5 -5 -5 -4 -4 -3 -2 -2 -1 ------- Run | Yrd Mat Mat Sto Rec Scr Fac Low Low Fac Upp Upp War Pro Fac Res Res Tes Acc Maximum Alert Level 2 | . . 1 1 . . 2 . . 1 . . . . . . . 1 1 Low Security (%) 68 | 100 100 70 95 100 . 35 . . 85 . . . . 100 100 100 70 22 Level 1 19 | . . 29 4 . . 26 . . 14 . . . . . . . 29 77 Level 2 11 | . . . . . . 38 . . . . . . . . . . . . Level 3 . | . . . . . . . . . . . . . . . . . . . Level 4 . | . . . . . . . . . . . . . . . . . . . Level 5 . | . . . . . . . . . . . . . . . . . . . High Security . | . . . . . . . . . . . . . . . . . . . Max Security . | . . . . . . . . . . . . . . . . . . . Peak Influence 690 | 5 60 364 221 39 . 690 . . 253 . . . . 137 92 6 397 267 Initial 232 | . . . 148 39 . . . . 84 . . . . . 62 6 . 232 Average 163 | . 9 135 81 4 . 338 . . 130 . . . . 12 16 . 142 224 Influence Increases 6432 | 15 262 1074 426 21 . 1666 170 183 582 125 175 20 230 259 408 . 498 318 Destroy 0b10 Robot/C 3140 | . 180 640 240 . . 900 140 140 180 100 140 20 200 60 200 . . . Destroy 0b10 Robot/NC 250 | 15 10 55 10 . . 55 10 . 40 . 15 . . 5 35 . . . Destroy Leader 724 | . 42 192 62 . . 242 20 20 36 10 20 . 30 20 30 . . . Allied During Kill 112 | . . . . . . 76 . 8 16 . . . . . 12 . . . Successful Hack 301 | . . 36 11 21 . 26 . . 56 . . . . 47 11 . 33 60 Select Force Hacks 60 | . 30 30 . . . . . . . . . . . . . . . . Disable Machine 330 | . . 45 45 . . 75 . . 45 . . . . 75 15 . 15 15 Anti-Garrison Action 150 | . . . . . . 150 . . . . . . . . . . . . Destroy Structure 375 | . . 61 43 . . 52 . . 104 . . . . 52 60 . . 3 Partial Spotted 75 | . . . . . . . . . 30 . . . . . . . 30 15 Lose Combat Pursuer 915 | . . 15 15 . . 90 . 15 75 15 . . . . 45 . 420 225 Influence Decreases 6212 | 15 262 722 677 122 . 976 454 454 635 207 175 20 230 140 516 11 111 485 Entered New Map 899 | . . . 204 62 . . 256 78 51 31 . . . . 57 5 . 155 Time Decay 4241 | 15 262 692 453 60 . 756 198 246 434 176 145 20 110 100 257 6 81 230 Lost Part 932 | . . 30 . . . 200 . 130 70 . 30 . 120 40 182 . 30 100 Lost Ally 140 | . . . 20 . . 20 . . 80 . . . . . 20 . . . Squads Dispatched 57 | . 4 5 2 . . 27 . . 7 . . . . 2 5 3 1 1 Investigation 15 | . 1 2 . . . 5 . . 4 . . . . 1 1 . 1 . Extermination 16 | . . . . . . 9 . . 2 . . . . 1 2 1 . 1 Reinforcement 15 | . 3 3 2 . . 2 . . 1 . . . . . 2 2 . . Assault 6 | . . . . . . 6 . . . . . . . . . . . . Garrison 5 | . . . . . . 5 . . . . . . . . . . . . Intercept . | . . . . . . . . . . . . . . . . . . . Searches Triggered . | . . . . . . . . . . . . . . . . . . . Construction Impeded 1 | . . . . . . 1 . . . . . . . . . . . . Haulers Reinforced . | . . . . . . . . . . . . . . . . . . . Active Scanning Responses . | . . . . . . . . . . . . . . . . . . . Cargo Convoy Interrupts . | . . . . . . . . . . . . . . . . . . . Stealth | -11 -10 -9 -9 -9 -9 -6 -6 -6 -5 -5 -5 -5 -4 -4 -3 -2 -2 -1 --------- Run | Yrd Mat Mat Sto Rec Scr Fac Low Low Fac Upp Upp War Pro Fac Res Res Tes Acc Distress Signals 22 | . 2 8 3 . . 3 . . . . . 3 . 1 1 . . 1 Communications Jammed 27 | . . . . . . . . . . . . . . . 19 8 . . Distress Signals 27 | . . . . . . . . . . . . . . . 19 8 . . Times Spotted 339 | . 26 64 18 . . 61 5 8 18 6 7 20 12 10 20 13 29 22 Peak Tracking Total 16 | . 3 5 5 . . 5 2 4 5 4 7 7 5 5 5 10 16 10 Tactical Retreats 23 | . . 1 1 . . 3 . 1 4 1 . . . . 2 . 5 5 Traps | -11 -10 -9 -9 -9 -9 -6 -6 -6 -5 -5 -5 -5 -4 -4 -3 -2 -2 -1 ------- Run | Yrd Mat Mat Sto Rec Scr Fac Low Low Fac Upp Upp War Pro Fac Res Res Tes Acc Traps Triggered 9 | . 2 1 . . . 3 . . 1 . . . . . . . . 2 Indirectly . | . . . . . . . . . . . . . . . . . . . Trap Hack Attempts . | . . . . . . . . . . . . . . . . . . . Triggered . | . . . . . . . . . . . . . . . . . . . Disarmed . | . . . . . . . . . . . . . . . . . . . Reprogrammed . | . . . . . . . . . . . . . . . . . . . Reused . | . . . . . . . . . . . . . . . . . . . Traps Extracted . | . . . . . . . . . . . . . . . . . . . Installed . | . . . . . . . . . . . . . . . . . . . Triggered . | . . . . . . . . . . . . . . . . . . . Machines | -11 -10 -9 -9 -9 -9 -6 -6 -6 -5 -5 -5 -5 -4 -4 -3 -2 -2 -1 ---------- Run | Yrd Mat Mat Sto Rec Scr Fac Low Low Fac Upp Upp War Pro Fac Res Res Tes Acc Machines Disabled 23 | . . 3 3 . . 6 . . 3 . . . . 5 1 . 1 1 Max in Single Turn 5 | . . 1 1 . . 1 . . 1 . . . . 5 . . 1 1 Garrison Access 1 | . . . . . . 1 . . . . . . . . . . . . Machines Repaired . | . . . . . . . . . . . . . . . . . . . Machines Dismantled . | . . . . . . . . . . . . . . . . . . . Machines Sabotaged . | . . . . . . . . . . . . . . . . . . . Overloaded Fab Kills . | . . . . . . . . . . . . . . . . . . . Hacking | -11 -10 -9 -9 -9 -9 -6 -6 -6 -5 -5 -5 -5 -4 -4 -3 -2 -2 -1 --------- Run | Yrd Mat Mat Sto Rec Scr Fac Low Low Fac Upp Upp War Pro Fac Res Res Tes Acc Machines Accessed 84 | . 6 10 3 6 10 16 1 . 12 1 . 3 . 4 3 . 4 5 Terminals 46 | . 5 8 3 4 . 5 1 . 7 . . . . 3 2 . 4 4 Fabricators 2 | . . . . . . 1 . . 1 . . . . . . . . . Repair Stations 4 | . . . . . . 2 . . 1 . . . . . . . . 1 Recycling Units 15 | . 1 1 . 2 . 6 . . 3 . . . . 1 1 . . . Scanalyzers 1 | . . 1 . . . . . . . . . . . . . . . . Garrison Access 2 | . . . . . . 2 . . . . . . . . . . . . Total Hacks 214 | . 14 29 3 19 45 35 1 . 30 1 . 7 . 9 5 . 7 9 Successful 126 | . 4 15 3 8 45 12 1 . 16 1 . 7 . 6 3 . 2 3 Failed 87 | . 10 14 . 10 . 23 . . 14 . . . . 3 2 . 5 6 Catastrophic 17 | . 1 3 . . . 4 . . 5 . . . . . . . 2 2 Database Lockouts 1 | . . . . 1 . . . . . . . . . . . . . . Manual 104 | . 13 19 1 11 . 23 . . 25 . . . . 6 3 . 1 2 Terminals 116 | . 13 21 3 16 . 14 1 . 24 . . . . 7 3 . 7 7 Fabricators 2 | . . . . . . 1 . . 1 . . . . . . . . . Repair Stations 8 | . . . . . . 5 . . 1 . . . . . . . . 2 Recycling Units 27 | . 1 3 . 3 . 12 . . 4 . . . . 2 2 . . . Scanalyzers 5 | . . 5 . . . . . . . . . . . . . . . . Garrison Access 3 | . . . . . . 3 . . . . . . . . . . . . Terminal Hacks 81 | . 2 5 3 4 45 . 1 . 7 1 . 7 . 1 2 . 2 1 Record 51 | . . . . . 44 . 1 . . . . 6 . . . . . . Part Schematic 4 | . . . . 2 . . . . 2 . . . . . . . . . Robot Analysis 4 | . 1 3 . . . . . . . . . . . . . . . . Prototype ID Bank 4 | . 1 2 . 1 . . . . . . . . . . . . . . Open Door 5 | . . . 3 . . . . . . 1 . 1 . . . . . . Level Access Points 3 | . . . . . . . . . . . . . . . 1 . 1 1 Branch Access Points 1 | . . . . . . . . . . . . . . . 1 . . . Machine Index 1 | . . . . . . . . . . . . . . . . . 1 . Garrison Index 2 | . . . . . . . . . 1 . . . . 1 . . . . Locate Traps 1 | . . . . . . . . . 1 . . . . . . . . . Surveillance Status 1 | . . . . . . . . . 1 . . . . . . . . . Transport Status 1 | . . . . . . . . . 1 . . . . . . . . . Recall Investigation 1 | . . . . . . . . . 1 . . . . . . . . . Hauler Manifests 1 | . . . . 1 . . . . . . . . . . . . . . Proto ID Catalog 1 | . . . . . 1 . . . . . . . . . . . . . Fabricator Hacks 2 | . . . . . . 1 . . 1 . . . . . . . . . Network Status 1 | . . . . . . 1 . . . . . . . . . . . . Load Schematic 1 | . . . . . . . . . 1 . . . . . . . . . Repair Station Hacks 4 | . . . . . . 3 . . . . . . . . . . . 1 Scan Component 2 | . . . . . . 2 . . . . . . . . . . . . Repair 1 | . . . . . . 1 . . . . . . . . . . . . Refit 1 | . . . . . . . . . . . . . . . . . . 1 Recycling Unit Hacks 4 | . . 1 . . . 1 . . 1 . . . . 1 . . . . Report Inventory 4 | . . 1 . . . 1 . . 1 . . . . 1 . . . . Scanalyzer 4 | . . 4 . . . . . . . . . . . . . . . . Insert Component 2 | . . 2 . . . . . . . . . . . . . . . . Analyze 2 | . . 2 . . . . . . . . . . . . . . . . Garrison Access Hacks . | . . . . . . . . . . . . . . . . . . . Unauthorized Hacks 31 | . 2 5 . 4 . 7 . . 7 . . . . 4 1 . . 1 Terminals 18 | . 1 3 . 2 . 4 . . 4 . . . . 3 . . . 1 Assimilate 1 | . . . . . . 1 . . . . . . . . . . . . Botnet 17 | . 1 3 . 2 . 3 . . 4 . . . . 3 . . . 1 Fabricators . | . . . . . . . . . . . . . . . . . . . Repair Stations . | . . . . . . . . . . . . . . . . . . . Recycling Units 13 | . 1 2 . 2 . 3 . . 3 . . . . 1 1 . . . Reject 3 | . . 1 . 2 . . . . . . . . . . . . . . Tunnel 2 | . 1 1 . . . . . . . . . . . . . . . . Fedlink 6 | . . . . . . 3 . . 2 . . . . 1 . . . . Scrapoids 1 | . . . . . . . . . 1 . . . . . . . . . Scraphulk 1 | . . . . . . . . . . . . . . . 1 . . . Scanalyzers . | . . . . . . . . . . . . . . . . . . . Garrison Access . | . . . . . . . . . . . . . . . . . . . Data Cores Recovered 2 | . . 1 . . . . . . 1 . . . . . . . . . Used 1 | . . . . . . . . . 1 . . . . . . . . . Hacking Detections 57 | . 5 9 2 5 . 11 . . 9 . . . . 4 3 . 4 5 Full Trace Events 6 | . 1 . . 1 . 2 . . 1 . . . . . . . 1 . Feedback Events . | . . . . . . . . . . . . . . . . . . . Feedback Blocked . | . . . . . . . . . . . . . . . . . . . Robot Schematics Acquired . | . . . . . . . . . . . . . . . . . . . Robots Built . | . . . . . . . . . . . . . . . . . . . Authchips . | . . . . . . . . . . . . . . . . . . . Time . | . . . . . . . . . . . . . . . . . . . Total Robot Build Rating . | . . . . . . . . . . . . . . . . . . . Part Schematics Acquired 6 | . . 2 . 2 . . . . 2 . . . . . . . . . Parts Built . | . . . . . . . . . . . . . . . . . . . Authchips . | . . . . . . . . . . . . . . . . . . . Time . | . . . . . . . . . . . . . . . . . . . Total Part Build Rating . | . . . . . . . . . . . . . . . . . . . Parts Repaired 1 | . . . . . . 1 . . . . . . . . . . . . Time 50 | . . . . . . 50 . . . . . . . . . . . . Parts Recycled . | . . . . . . . . . . . . . . . . . . . Recycled Matter . | . . . . . . . . . . . . . . . . . . . Retrieved Matter . | . . . . . . . . . . . . . . . . . . . Retrieved Components . | . . . . . . . . . . . . . . . . . . . Parts Scanalyzed 2 | . . 2 . . . . . . . . . . . . . . . . Part Schematics Acquired 2 | . . 2 . . . . . . . . . . . . . . . . Parts Damaged . | . . . . . . . . . . . . . . . . . . . Bothacking | -11 -10 -9 -9 -9 -9 -6 -6 -6 -5 -5 -5 -5 -4 -4 -3 -2 -2 -1 ------------ Run | Yrd Mat Mat Sto Rec Scr Fac Low Low Fac Upp Upp War Pro Fac Res Res Tes Acc Used RIF Installer . | . . . . . . . . . . . . . . . . . . . Robots Hacked . | . . . . . . . . . . . . . . . . . . . Non-combat . | . . . . . . . . . . . . . . . . . . . Combat . | . . . . . . . . . . . . . . . . . . . Robot Hacks Applied . | . . . . . . . . . . . . . . . . . . . Relay Couplers Released 3 | . . . . . . 3 . . . . . . . . . . . . Machine Destruction 3 | . . . . . . 3 . . . . . . . . . . . . Fabnet Peak Effective % . | . . . . . . . . . . . . . . . . . . . Robots Rewired . | . . . . . . . . . . . . . . . . . . . Allies Hacked . | . . . . . . . . . . . . . . . . . . . Hacks Repelled . | . . . . . . . . . . . . . . . . . . . Allies | -11 -10 -9 -9 -9 -9 -6 -6 -6 -5 -5 -5 -5 -4 -4 -3 -2 -2 -1 -------- Run | Yrd Mat Mat Sto Rec Scr Fac Low Low Fac Upp Upp War Pro Fac Res Res Tes Acc Total Allies 9 | . . . . . 1 1 . 1 5 . . . . . 1 . . . Largest Group 4 | . . . . . 1 2 . 1 4 . . . . . 1 . . . Highest-Rated Group 188 | . . . . . 61 87 . 141 188 . . . . . 139 . . . Highest-Rated Ally 141 | . . . . . 61 61 . 141 47 . . . . . 139 . . . Total Orders 1 | . . . 1 . . . . . . . . . . . . . . . EXPLORE 1 | . . . 1 . . . . . . . . . . . . . . . Ally Attacks 92 | . . . . . . 49 . 7 27 . . . . . 9 . . . Total Damage 3964 | . . . . . . 2596 . 496 532 . . . . . 340 . . . Kills 23 | . . . . . . 14 . 3 5 . . . . . 1 . . . Allies Corrupted . | . . . . . . . . . . . . . . . . . . . Allies Melted 2 | . . . . . . 1 . . . . . 1 . . . . . . Intel | -11 -10 -9 -9 -9 -9 -6 -6 -6 -5 -5 -5 -5 -4 -4 -3 -2 -2 -1 ------- Run | Yrd Mat Mat Sto Rec Scr Fac Low Low Fac Upp Upp War Pro Fac Res Res Tes Acc Active Infowar (turns) 13560 | 14 331 2805 . . . 2725 415 304 1058 1009 749 1030 868 485 907 186 194 480 Optics 6966 | . . . . . . . . . 1058 1009 749 1030 868 485 907 186 194 480 Sensors 7780 | . . . . . . 2373 415 296 514 792 620 832 656 380 734 . 133 35 Terrain 2804 | . . 2804 . . . . . . . . . . . . . . . . Seismic 1112 | 14 331 767 . . . . . . . . . . . . . . . . Jamming 2849 | . . . . . . 931 415 16 126 . . . 308 326 572 155 . . Robot Analysis Total 4 | . 1 3 . . . . . . . . . . . . . . . . Derelict Logs Recovered 4 | . . . . . . . . . . . 2 . 2 . . . . . Drone Launches 2 | . . . 2 . . . . . . . . . . . . . . . Drone Recoveries . | . . . . . . . . . . . . . . . . . . . Exploration | -11 -10 -9 -9 -9 -9 -6 -6 -6 -5 -5 -5 -5 -4 -4 -3 -2 -2 -1 ------------- Run | Yrd Mat Mat Sto Rec Scr Fac Low Low Fac Upp Upp War Pro Fac Res Res Tes Acc Turns Passed 25127 | 235 1338 4017 1349 532 5112 4579 415 533 1065 1053 749 1030 868 485 907 186 194 480 Spaces Moved 15102 | 124 703 1562 333 216 2102 2575 332 213 1890 651 473 719 418 306 685 490 391 919 Core 479 | 3 . . . . . . . 213 96 . . . . . . . . 167 Treads 6122 | 121 703 1562 333 216 2102 1080 . . . . . . . 3 2 . . . Legs 4257 | . . . . . . 1312 . . 45 651 473 719 418 303 336 . . . Wheels 690 | . . . . . . 183 332 . . . . . . . 175 . . . Hover 3 | . . . . . . . . . . . . . . . 3 . . . Flight 3551 | . . . . . . . . . 1749 . . . . . 169 490 391 752 Fastest Speed 24 | 50 160 160 240 240 240 115 115 50 24 128 128 124 120 120 37 37 37 42 Average Speed 140 | 157 160 225 240 240 241 143 115 177 33 128 128 127 149 123 107 37 41 43 Slowest Speed 650 | 160 160 240 240 240 245 330 115 650 285 128 128 128 270 190 221 37 122 100 Overloaded Moves 7 | . . . . . . 7 . . . . . . . . . . . . Propulsion Burnouts . | . . . . . . . . . . . . . . . . . . . Robots Hopped 59 | . . . . . . . . . 4 . . . . . 1 10 18 26 Potential Cave-ins 1 | . . . . . . . . . 1 . . . . . . . . . Cave-ins Triggered . | . . . . . . . . . . . . . . . . . . . Exploration Rate (%) 50 | 7 96 94 48 48 91 47 60 25 37 80 64 75 59 12 20 14 50 28 Regions Visited 18 Branch Regions 10 Pre-discovered Areas 4 | . 1 1 . . . 1 . . . . 1 . . . . . . . Known Exits Taken 15 | . . 1 1 1 1 1 1 1 1 1 1 1 1 1 1 . 1 . Unknown Exits Taken 3 | 1 1 . . . . . . . . . . . . . . 1 . . Scrap Searched 17 | . . . . . 5 . 1 . . 4 2 . 5 . . . . . Spaces Dug 68 | . . 11 19 . . 18 . . 17 1 . . . 2 . . . . Terrain Destroyed 368 | . . 59 41 . . 44 87 45 17 1 . 6 8 34 25 . . 1 Melee 36 | . . . . . . 18 . . 17 1 . . . . . . . . Projectile 62 | . . 4 6 . . 6 3 6 . . . 6 8 9 13 . . 1 AOE 270 | . . 55 35 . . 20 84 39 . . . . . 25 12 . . . Terrain Rammed . | . . . . . . . . . . . . . . . . . . . Walls Destroyed . | . . . . . . . . . . . . . . . . . . . Machines Disabled . | . . . . . . . . . . . . . . . . . . . Actions | -11 -10 -9 -9 -9 -9 -6 -6 -6 -5 -5 -5 -5 -4 -4 -3 -2 -2 -1 --------- Run | Yrd Mat Mat Sto Rec Scr Fac Low Low Fac Upp Upp War Pro Fac Res Res Tes Acc Total 18009 | 143 828 1866 815 231 2139 3200 347 347 2215 842 592 820 619 381 775 483 401 965 Wait 1641 | . 32 100 410 16 2 276 1 84 159 161 90 51 145 43 7 . 17 47 Move 14975 | 123 702 1561 332 215 2101 2574 331 212 1881 650 472 718 417 305 682 469 356 874 Hop 50 | . . . . . . . . . 4 . . . . . 1 10 16 19 Pick Up 163 | 4 20 28 3 . 12 36 . 2 22 9 1 7 5 3 8 1 2 . Fast Attach 121 | 7 4 7 5 . 1 26 1 . 25 2 4 7 6 3 13 2 4 4 Attach 100 | . 2 10 1 . 1 25 . 12 23 . . 2 8 3 9 . 3 1 Detach 36 | . . 1 1 . . 9 . 8 10 . . 1 1 2 2 . . 1 Swap 109 | . 6 24 9 . 5 32 1 4 3 2 3 9 5 4 2 . . . Drop 191 | . 13 28 10 . 16 40 1 6 31 2 3 16 3 2 11 1 1 7 Fire 420 | 9 46 107 44 . . 54 12 17 . 13 17 9 25 16 40 . 2 9 Melee 190 | . 3 . . . . 122 . 1 57 3 . . 4 . . . . . Ram 3 | . . . . . . . . . . . . . . . . . . 3 Kick 2 | . . . . . . . . . . . 2 . . . . . . . Crush . | . . . . . . . . . . . . . . . . . . . Escape Stasis . | . . . . . . . . . . . . . . . . . . . Rewire 7 | . . . . . 1 6 . . . . . . . . . . . . Trap . | . . . . . . . . . . . . . . . . . . . Miscellaneous 1 | . . . . . . . . 1 . . . . . . . . . . Route ------- -11/Scrapyard -10/Materials (discovered 4 exits: *Mat x3 / [*Min]) -9/Materials (discovered 6 exits: *Mat x3 / [*Min] / *Sto x2) -9/Storage -9/Recycling -9/Scraptown (discovered 2 exits: *Fac x2) -6/Factory (discovered 4 exits: *Fac x2 / *Low x2) -6/Lower Caves -6/Lower Caves -5/Factory (discovered 3 exits: *Fac / *Upp x2) -5/Upper Caves -5/Upper Caves (discovered 2 exits: *Fac / *War) -5/Warlord -4/Proximity Caves -4/Factory -3/Research (discovered 6 exits: *Res x3 / Arm / Qua x2) -2/Research -2/Testing -1/Access (discovered 1 exit: Sur) History --------- Turn | Location | Event 9 | -11/Scrapyard | Discovered new exit (range 16) 236 | -11/Scrapyard | Entered Materials 237 | -10/Materials | Met a group of wandering Federalists 300 | -10/Materials | Build established: Mutant 469 | -10/Materials | Discovered new exit (range 8) 622 | -10/Materials | Discovered new exit (range 16) 891 | -10/Materials | Discovered new exit (range 10) 1056 | -10/Materials | Discovered new exit (range 14) 1574 | -10/Materials | Entered another Materials area 1574 | -9/Materials | Evolved 2 slots: Utility x2 1771 | -9/Materials | Discovered new exit (range 12) 2067 | -9/Materials | Build established: Scavenger-Mutant 2141 | -9/Materials | Discovered new exit (range 12) 3088 | -9/Materials | Build established: Mutant 3641 | -9/Materials | Discovered new exit (range 8) 3985 | -9/Materials | Discovered new exit (range 10) 4217 | -9/Materials | Discovered new exit (range 16) 5018 | -9/Materials | Discovered new exit (range 10) 5447 | -9/Materials | Identified exit to Materials 5588 | -9/Materials | Identified exit to Storage 5591 | -9/Materials | Entered Storage 6933 | -9/Storage | Used back door to open Recycling access 6933 | -9/Storage | Discovered new exit (range 4) 6937 | -9/Storage | Identified exit to Recycling 6940 | -9/Storage | Entered Recycling 7412 | -9/Recycling | Scanned before Scraplab entrance 7446 | -9/Recycling | Entered Scraplab 7468 | -9/Recycling | Discovered new exit (range 2) 7468 | -9/Recycling | Identified exit to Scraptown 7472 | -9/Recycling | Entered Scraptown 7905 | -9/Scraptown | Visited Symbiants 7963 | -9/Scraptown | Visited Comm Corps 8610 | -9/Scraptown | Discovered new exit (range 7) 8627 | -9/Scraptown | Identified exit to Factory 8845 | -9/Scraptown | Visited Fellowship of the Rings 8915 | -9/Scraptown | Visited Cyclists 9049 | -9/Scraptown | Visited SPCMW 9155 | -9/Scraptown | Visited CR-KLE's Repair Center 9861 | -9/Scraptown | Visited UFD Registry 9861 | -9/Scraptown | Registered with UFD as "Protoncoil" 9914 | -9/Scraptown | Visited Scrapoid Pod Storage 9962 | -9/Scraptown | Visited Scrap Suit Storage 10031 | -9/Scraptown | Found Scrap Suit 10114 | -9/Scraptown | Visited Science Guys 10565 | -9/Scraptown | Visited Observation Area 10707 | -9/Scraptown | Visited Derelict Rescue Squad 10731 | -9/Scraptown | Found DRS Beacon 10773 | -9/Scraptown | Visited Junk Repository 10834 | -9/Scraptown | Visited Botcube Research 10852 | -9/Scraptown | Lrg. Botcube activated 10868 | -9/Scraptown | Lrg. Botcube completed mutation into legged form, armed with 2 cannons. 10918 | -9/Scraptown | Visited Chapter 10 11014 | -9/Scraptown | Visited Curators Association 11068 | -9/Scraptown | Visited LU-1G1's Boring Crew 11235 | -9/Scraptown | Entered Cyclist Reading Room 11401 | -9/Scraptown | Found Scrap Suit 11512 | -9/Scraptown | Found Scrap Suit 12449 | -9/Scraptown | Met Optimus 12449 | -9/Scraptown | Accepted into 0bPrime 12574 | -9/Scraptown | Discovered exit to Factory (range 5) 12584 | -9/Scraptown | Entered Factory 12584 | -6/Factory | Accompanied by 1 ally 12584 | -6/Factory | Evolved 6 slots: Power x1, Propulsion x2, Utility x2, Weapon x1 12643 | -6/Factory | Garrison activated, responded to threat 12806 | -6/Factory | Garrison activated, responded to threat 12897 | -6/Factory | Build established: Tank 12919 | -6/Factory | Garrison activated, responded to threat 13247 | -6/Factory | P-60 Hacker assimilated allied Administrator 5a 13765 | -6/Factory | Build established: Mutant 14504 | -6/Factory | Loaded intel: 8 recycling unit locations 14544 | -6/Factory | Spotted B-75 Beast 14587 | -6/Factory | Destroyed B-75 Beast 14667 | -6/Factory | Lost 5 parts (1p2n2u) 15138 | -6/Factory | Discovered new exit (range 11) 15148 | -6/Factory | Identified exit to Lower Caves 15233 | -6/Factory | Discovered exit to Lower Caves (range 14) 15291 | -6/Factory | Repaired Arm. Leg 15597 | -6/Factory | Discovered new exit (range 7) 15606 | -6/Factory | Identified exit to Factory 15632 | -6/Factory | Build established: Gladiator 15734 | -6/Factory | First assault squad dispatched 15790 | -6/Factory | Learned location of Protoforge (-2) 15869 | -6/Factory | System corruption reached 10% 16121 | -6/Factory | Core integrity fell below 50% 16166 | -6/Factory | Lost 7 parts (1p3n3u) 16576 | -6/Factory | Discovered exit to Factory (range 12) 17163 | -6/Factory | Entered Lower Caves 17571 | -6/Lower Caves | Discovered new exit (range 6) 17576 | -6/Lower Caves | Identified exit to Lower Caves 17578 | -6/Lower Caves | Entered another Lower Caves area 17623 | -6/Lower Caves | Lost 5 parts (1p3n1w) 17880 | -6/Lower Caves | Build established: Mutant 17975 | -6/Lower Caves | Activated DRS Beacon 18001 | -6/Lower Caves | Core integrity fell below 20% 18006 | -6/Lower Caves | 1C-UTU showed up to help 18008 | -6/Lower Caves | 1C-UTU revealed a hidden path 18030 | -6/Lower Caves | Lost 7 parts (2p3u2w) 18111 | -6/Lower Caves | Entered Factory 18111 | -5/Factory | Evolved 2 slots: Propulsion x1, Utility x1 18378 | -5/Factory | Discovered new exit (range 5) 18387 | -5/Factory | Identified exit to Upper Caves 18458 | -5/Factory | Scrapoids reinforcements arrived? 18523 | -5/Factory | Loaded intel: 7 recycling unit locations 18605 | -5/Factory | Lost 3 allies 18607 | -5/Factory | Discovered exit to Upper Caves (range 18) 18638 | -5/Factory | Discovered new exit (range 5) 18702 | -5/Factory | Identified exit to Factory 18782 | -5/Factory | Build established: Hacker-Scout 19176 | -5/Factory | Entered Upper Caves 19178 | -5/Upper Caves | Attracted the attention of an 0b10 checkpoint 19423 | -5/Upper Caves | Build established: Hacker-Mutant 19724 | -5/Upper Caves | Build established: Hacker-Assassin 19894 | -5/Upper Caves | Encountered a Warlord checkpoint 20075 | -5/Upper Caves | Discovered new exit (range 10) 20085 | -5/Upper Caves | Identified exit to Upper Caves 20229 | -5/Upper Caves | Entered another Upper Caves area 20235 | -5/Upper Caves | Learned Factory garrison access intel 20299 | -5/Upper Caves | Discovered exit to Factory (range 8) 20580 | -5/Upper Caves | Destroyed 7 combat bots 20582 | -5/Upper Caves | Lost 3 parts (1p1u1w) 20937 | -5/Upper Caves | Build established: Hacker-Skirmisher 20967 | -5/Upper Caves | Discovered new exit (range 7) 20976 | -5/Upper Caves | Identified exit to Warlord 20978 | -5/Upper Caves | Entered Warlord 21048 | -5/Warlord | Discovered new exit (range 9) 21122 | -5/Warlord | System corruption cleaned by Quarantine Array 21227 | -5/Warlord | Visited the Vortex Lab 21230 | -5/Warlord | Warlord's base attacked by MAIN.C 21252 | -5/Warlord | Found Prototype Energy Cannon 21252 | -5/Warlord | Identified Vortex Driver 21306 | -5/Warlord | Found Vortex Driver 21519 | -5/Warlord | Rebuked by Warlord 21580 | -5/Warlord | Warlord forces counterattacked 21793 | -5/Warlord | Spotted Striker 21858 | -5/Warlord | Lost 9 allies 21883 | -5/Warlord | Spotted Striker 21905 | -5/Warlord | Warlord base infiltrated, sounded retreat 21974 | -5/Warlord | Spotted Executioner 22007 | -5/Warlord | Identified exit to Proximity Caves 22008 | -5/Warlord | Entered Proximity Caves 22020 | -4/Proximity Caves | Core integrity fell below 50% 22068 | -4/Proximity Caves | Lost 3 parts (3p) 22413 | -4/Proximity Caves | Build established: Scavenger-Skirmisher 22456 | -4/Proximity Caves | Attracted the attention of an 0b10 checkpoint 22548 | -4/Proximity Caves | Destroyed 7 combat bots 22556 | -4/Proximity Caves | Lost 11 parts (2p5n1u3w) 22729 | -4/Proximity Caves | Learned Research emergency access door positions 22851 | -4/Proximity Caves | Discovered exit to Factory (range 6) 22859 | -4/Proximity Caves | Learned location of 1 exit from Proximity Caves 22876 | -4/Proximity Caves | Entered Factory 22876 | -4/Factory | Evolved 2 slots: Propulsion x1, Utility x1 22877 | -4/Factory | Loaded intel: 4 garrison access locations 23082 | -4/Factory | Loaded intel: 8 recycling unit locations 23165 | -4/Factory | Discovered new exit (range 21) 23281 | -4/Factory | Lost 3 parts (1p2u) 23317 | -4/Factory | Identified exit to Research 23361 | -4/Factory | Entered Research 23361 | -3/Research | Evolved 2 slots: Propulsion x2 23506 | -3/Research | Build established: Scavenger-Tank 23577 | -3/Research | Identified exit to Armory 23577 | -3/Research | Identified exit to Quarantine 23577 | -3/Research | Identified exit to Research 23956 | -3/Research | Lost 4 parts (1p2n1w) 24000 | -3/Research | Spotted B-86 Titan 24145 | -3/Research | Scraphulk reinforcements arrived 24153 | -3/Research | System corruption reached 10% 24210 | -3/Research | Lost 14 parts (2p3n4u5w) 24268 | -3/Research | Entered another Research area 24268 | -2/Research | Evolved 2 slots: Power x1, Propulsion x1 24447 | -2/Research | Build established: Mutant 24450 | -2/Research | Discovered new exit (range 9) 24454 | -2/Research | Entered Testing 24517 | -2/Testing | Spotted PD-05LXA7PDCP 24543 | -2/Testing | Found Prototype Energy Gun 24543 | -2/Testing | Identified Warp Gun 24562 | -2/Testing | Lost 3 parts (2p1u) 24592 | -2/Testing | Identified exit to Access 24628 | -2/Testing | Spotted PP-E46CKPZM97 24648 | -2/Testing | Entered Access 24648 | -1/Access | Evolved 2 slots: Propulsion x1, Utility x1 24674 | -1/Access | Identified exit to Surface 24773 | -1/Access | Build established: Hacker-Mutant 24955 | -1/Access | Spotted B-99 Colossus 25054 | -1/Access | Lost 6 parts (1p2n3u) 25069 | -1/Access | System corruption reached 10% 25094 | -1/Access | Core integrity fell below 50% 25119 | -1/Access | Core integrity fell below 20% 25128 | -1/Access | Destroyed by P-80 Master with Gamma Rifle Last Messages --------------- 25103_ P-80 Master resets P-80 Master, system corruption cleaned. 25105_ Slug penetrates Wall. 25107_ Slug penetrates P-80 Master. 25109_ Slug penetrates Wall. 25110_ P-80 Master resets P-80 Master, system corruption cleaned. 25110_ Broken Adv. Signal Interpreter destroyed. 25113_ Railgun destroyed. 25114_ System corrupted: Matter fused (-7). 25116_ P-80 Master resets P-80 Master, system corruption cleaned. 25117_ Slammed into R-10 Processor. 25120_ P-80 Master resets P-80 Master, system corruption cleaned. 25124_ Slug penetrates P-80 Master. 25124_ Slug penetrates Wall. 25125_ P-80 Master resets R-10 Processor, system corruption cleaned. 25127_ Penetrated by Slug. Map ----- +----------------------------------------------------+ | ?????????# #???????????????????## ##???????? | | ???####### #???????????????????# #???????? | | ???# ###+#############+### #???????? | | #### #???????? | | #???????? | | %% #???????? | | ]* %! #???????? | | #### ! ######### | | ???# ###+#############+#"#% = | | ???######### ?# # ######### | | ???????????# ## !!! ##### "#####??????? | | ?########??# ## !! #####/#########???? | | #??# ## !! ## #???? | | = #??# ## ## #???? | | #??# ################ "" #???? | | ? #??# !! #??????????????# "" #???? | | ? #??# !! #??????????????# "" #???? | | #??# ! #??????????????# S #???? | | "" #??# #??????????????# "" #???? | | "" #??# #??????????????# "" #???? | | """"" #??# #??????????????# "" #???? | | """"" #??#######??????????????# #???? | | ?"" #???????????????????????# ?? #???? | | ??? ????????????????????????# ??? #???? | | #####+####################+#########+#########???? | | p @ p #????? | | Y t RRA #????? | | #####+##### p ""#####/############### #????? | | ???? ???# p ""#???? ????????????????????? | | ???? ???# #???? ??????????????????? | | ???""" ??# #????k" ?????????????????? | | ???"T" ??# #?????"" #????????????????? | | ?? #?# ""#?????""" #????????????????? | | ?? #?# **** "#????? " #????????????????? | | ? #?""""""""""""????? #????????????????? | | ? #??????????????????? #????????????????? | | # #??????????????????? ] #????????????????? | | # #???????????????????#####????????????????? | | # #????????????????????????????????????????? | | # #??????